fUSD/lending_fUSD_20260106
["ID","MTS","AMOUNT","RATE_DAILY","PERIOD"]
[400534133,1767701444407,-500.0,0.00039799,30]
[400534134,1767701444416,-478.75725327,0.00039799,30]
[400534135,1767701444426,-151.0,0.00039799,30]
[400534136,1767701444435,-500.0,0.00039799,30]
[400534137,1767701444444,-151.0,0.00039799,120]
[400534138,1767701444455,-151.0,0.00039799,120]
[400534139,1767701444464,-500.0,0.00039799,30]
[400534140,1767701444474,-250.0,0.00039799,30]
[400534141,1767701444484,-500.0,0.00039799,30]
[400534142,1767701444493,-250.0,0.00039799,30]
[400534143,1767701444503,-539.789992,0.00039799,120]
[400534144,1767701444513,-539.789992,0.00039799,120]
[400534145,1767701444523,-539.789992,0.00039799,120]
[400534146,1767701444533,-539.789992,0.00039799,120]
[400534147,1767701444542,-574.327312,0.00039799,28]
[400534148,1767701444551,-574.327312,0.00039799,28]
[400534149,1767701444562,-574.327312,0.00039799,28]
[400534150,1767701444571,-574.327312,0.00039799,28]
[400534151,1767701444580,-151.0,0.00039799,120]
[400534152,1767701444591,-247.911507,0.00039799,120]
[400534153,1767701444601,-247.911507,0.00039799,120]
[400534154,1767701444611,-282.490509,0.00039799,120]
[400534155,1767701444621,-247.911507,0.00039799,120]
[400534156,1767701444631,-282.490509,0.00039799,120]
[400534157,1767701444640,-247.911507,0.00039799,120]
[400534158,1767701444649,-282.490509,0.00039799,120]
[400534159,1767701444659,-282.490509,0.00039799,120]
[400534160,1767701444668,-1094.11,0.00039799,120]
[400534161,1767701444678,-1094.11,0.00039799,120]
[400534162,1767701444687,-1094.11,0.00039799,120]
[400534163,1767701444697,-1094.11,0.00039799,120]
[400534164,1767701444707,-1094.11,0.00039799,120]
[400534165,1767701444717,-1094.11,0.00039799,120]
[400534166,1767701444727,-500.0,0.00039799,60]
[400534167,1767701444738,-500.0,0.00039799,60]
[400534168,1767701444747,-551.42558841,0.00039799,60]
[400534169,1767701444757,-151.0,0.00039799,120]
[400534170,1767701444766,-151.0,0.00039799,120]
[400534171,1767701444776,-151.0,0.00039799,120]
[400534173,1767701444786,-500.0,0.00039799,60]
[400534175,1767701444795,-500.0,0.00039799,60]
[400534177,1767701444804,-500.0,0.00039799,60]
[400534178,1767701444814,-500.0,0.00039799,60]
[400534179,1767701444824,-151.0,0.00039799,120]
[400534180,1767701444833,-500.0,0.00039799,60]
[400534181,1767701444842,-500.0,0.00039799,60]
[400534182,1767701444854,-151.0,0.00039799,120]
[400534183,1767701444864,-151.0,0.00039799,120]
[400534184,1767701444874,-151.0,0.00039799,120]
[400534185,1767701444884,-151.0,0.00039799,120]
[400534186,1767701444894,-2393.929056,0.00039799,120]
[400534187,1767701444904,-500.0,0.00039799,120]
[400534188,1767701444915,-500.0,0.00039799,120]
[400534189,1767701444924,-151.0,0.00039799,120]
[400534190,1767701444934,-500.0,0.00039799,120]
[400534191,1767701444944,-500.0,0.00039799,120]
[400534192,1767701444954,-500.0,0.00039799,120]
[400534193,1767701444964,-500.0,0.00039799,2]
[400534194,1767701444973,-500.0,0.00039799,120]
[400534195,1767701444983,-2393.929056,0.00039799,120]
[400534196,1767701444992,-500.0,0.00039799,2]
[400534197,1767701445003,-500.0,0.00039799,2]
[400534198,1767701445013,-500.0,0.00039799,2]
[400534199,1767701445024,-151.0,0.00039799,120]
[400534200,1767701445033,-500.0,0.00039799,2]
[400534201,1767701445042,-2393.929056,0.00039799,120]
[400534202,1767701445052,-151.0,0.00039799,120]
[400534203,1767701445063,-2393.929056,0.00039799,120]
[400534204,1767701445073,-180.999602,0.00039799,120]
[400534205,1767701445083,-151.0,0.00039799,120]
[400534206,1767701445094,-163.03843,0.00039799,120]
[400534207,1767701445103,-406.713074,0.00039799,120]
[400534208,1767701445114,-163.03843,0.00039799,120]
[400534209,1767701445124,-237.620548,0.00039799,120]
[400534210,1767701445133,-406.713074,0.00039799,120]
[400534211,1767701445143,-237.620548,0.00039799,120]
[400534212,1767701445152,-163.03843,0.00039799,120]
[400534213,1767701445161,-703.175621,0.00039799,120]
[400534214,1767701445170,-406.713074,0.00039799,120]
[400534215,1767701445179,-237.620548,0.00039799,120]
[400534216,1767701445189,-163.03843,0.00039799,120]
[400534217,1767701445198,-703.175621,0.00039799,120]
[400534218,1767701445209,-406.713074,0.00039799,120]
[400534219,1767701445219,-237.620548,0.00039799,120]
[400534220,1767701445227,-18100.9110305,0.000398,2]
[400534221,1767701445248,-378.96816864,0.000398,2]
[400534222,1767701445260,-2448.77003185,0.000398,2]
[400534223,1767701445271,-53381.07168516,0.000398,2]
[400534224,1767701445282,-19718.35014706,0.000398,2]
[400534225,1767701445359,-703.175621,0.00039799,120]
[400534226,1767701445369,-392679.3062447,0.000398,2]
[400534227,1767701445380,-160.2,0.000398,30]
[400534228,1767701445390,-3155.54017,0.000398,120]
[400534229,1767701445399,-248054.01182789,0.000398,2]
[400534239,1767701445600,-914.0,0.00031982,2]
[400534245,1767701445645,-703.175621,0.00039799,120]
[400534246,1767701445654,-604.81597667,0.000398,2]
[400534248,1767701445666,-3540.98397849,0.000398,2]
[400534251,1767701445678,-2297.64096379,0.000398,2]
[400534253,1767701445689,-1009.42804069,0.000398,2]
[400534256,1767701445709,-1473.45,0.000398,2]
[400534267,1767701445871,-2819.69681835,0.000398,2]
[400534309,1767701465317,195.0,0.00022212,120]
[400534311,1767701521906,300.0,0.00032877,120]
[400534312,1767701535126,592.64,0.00032876,120]
[400534313,1767701535351,592.64,0.00032876,120]
[400534317,1767701564417,500.0,0.00032877,120]
[400534318,1767701620332,300.0,0.00032877,120]
[400534319,1767701632958,450.0,0.00032877,120]
[400534320,1767701642745,450.0,0.00032877,120]
[400534321,1767701784803,543.26,0.00032876,120]
[400534322,1767701785033,543.26,0.00032876,120]
[400534324,1767701949690,165.02,0.00032877,120]
[400534325,1767702002853,500.0,0.00032876,120]
[400534326,1767702003126,500.0,0.00032876,120]
[400535868,1767702520863,297.34071,0.000285,120]
[400535869,1767702520895,-431.1772499,0.00016,4]
[400535887,1767702615431,165.875,0.00032876,120]
[400535933,1767702631738,-177.41346667,0.000159,2]
[400535935,1767702631747,-448.90229287,0.00015999,2]
[400535936,1767702631797,-751.09770713,0.00015999,2]
[400535937,1767702631807,-300.0,0.00015999,2]
[400535938,1767702631816,-1481.00375351,0.00016,4]
[400535939,1767702631828,-1091.80232096,0.00016,4]
[400535940,1767702631840,-1077.61333956,0.00016,4]
[400535941,1767702631851,-298.02975,0.00016,4]
[400535942,1767702631862,-716.94477083,0.00016,4]
[400535943,1767702631881,-8180.00623281,0.00016,4]
[400535944,1767702631890,-151.0,0.00016802,2]
[400535945,1767702631899,-151.0,0.00016802,2]
[400535946,1767702631908,-151.0,0.00016897,2]
[400535947,1767702631917,-151.0,0.00016897,2]
[400535948,1767702631926,-151.0,0.00016902,2]
[400535949,1767702631936,-151.0,0.00016902,2]
[400535950,1767702631946,-300.0,0.00017492,2]
[400535951,1767702631955,-598.0,0.0001758,2]
[400535952,1767702631965,-300.0,0.00017599,2]
[400535953,1767702631974,-431.1772499,0.00017599,2]
[400535954,1767702631983,-407.36190832,0.000179,2]
[400535955,1767702631992,-7372.00008452,0.000179,2]
[400535957,1767702632001,-298.48466787,0.000179,2]
[400535958,1767702632010,-1037.72021867,0.000179,2]
[400535959,1767702632019,-196.37906621,0.00017999,2]
[400535960,1767702632028,-26385.12428207,0.00018,2]
[400535961,1767702632039,-221645.16230342,0.00018,2]
[400535962,1767702632050,-1850.0,0.00018,2]
[400535963,1767702632061,-764.48554386,0.00018,2]
[400535964,1767702632072,-413.60445614,0.00018,2]
[400535965,1767702632083,-5326.68,0.00018,2]
[400535966,1767702632114,-8301.16846777,0.00018,2]
[400535967,1767702632125,-9805.73974299,0.00018,2]
[400535968,1767702632139,-1008.74102828,0.00018,2]
[400535969,1767702632150,-1024.53018477,0.00018,2]
[400535970,1767702632161,-1622.03362682,0.00018,2]
[400535972,1767702632171,-4443.51401426,0.00018,2]
[400535973,1767702632194,-822.10562034,0.00018,2]
[400535974,1767702632205,-9280.0,0.00018,2]
[400536006,1767702637770,-151.0,0.00016884,2]
[400536007,1767702637781,-151.0,0.00016884,2]
[400536008,1767702637790,-6122.59719045,0.00018,2]
[400536009,1767702637828,-2932694.64600024,0.00018,2]
[400536010,1767702637842,-2188627.55107193,0.00018,2]
[400536011,1767702637852,-85134.62315197,0.00018,2]
[400536012,1767702637861,-1409730.7807288,0.00018,2]
[400536013,1767702637887,-463.885,0.00018,2]
[400536014,1767702637898,-1393.515,0.00018,2]
[400536015,1767702637913,-731.46652924,0.00018,2]
[400536016,1767702637945,-742.4,0.00018,2]
[400536017,1767702637957,-2386.2826,0.00018,2]
[400536018,1767702638003,-13793.96453386,0.00018,2]
[400536019,1767702638014,-304.62,0.00018,2]
[400536020,1767702638026,-19549.46723283,0.00018,2]
[400536021,1767702638037,-12445.64684031,0.00018,2]
[400536022,1767702638049,-795.12728954,0.00018,2]
[400536023,1767702638064,-2188.98332652,0.00018,2]
[400536024,1767702638080,-5198.09525831,0.00018,2]
[400536048,1767702639835,-166.72267622,0.000179,2]
[400536049,1767702639845,-302.34732378,0.00018,2]
[400536056,1767702639948,-1537.44145351,0.00018,2]
[400536057,1767702639959,-1273.216,0.00018,2]
[400536058,1767702639970,-2158.4752107,0.00018,2]
[400536059,1767702640009,-4500.0,0.00018,2]
[400536073,1767702644495,-388.09645538,0.00018,2]
[400536137,1767702645406,-428.76492467,0.00018,2]
[400536138,1767702645418,-9275.00000005,0.00018,2]
[400536139,1767702645429,-3498.88863397,0.00018,2]
[400536140,1767702645441,-400.70191593,0.00018,2]
[400536141,1767702645475,-199243.32813906,0.00018,2]
[400536142,1767702645485,-151.51,0.000188,2]
[400536143,1767702645495,-151.51,0.000188,2]
[400536144,1767702645504,-151.51,0.000188,2]
[400536145,1767702645513,-151.51,0.000188,2]
[400536146,1767702645523,-151.51,0.000188,2]
[400536147,1767702645532,-151.51,0.000188,2]
[400536148,1767702645542,-151.51,0.000188,2]
[400536149,1767702645551,-151.51,0.000188,2]
[400536150,1767702645560,-151.51,0.000188,2]
[400536151,1767702645569,-151.51,0.000188,2]
[400536152,1767702645579,-151.51,0.000188,2]
[400536154,1767702645588,-151.51,0.000188,2]
[400536155,1767702645597,-151.51,0.000188,2]
[400536156,1767702645607,-151.51,0.000188,2]
[400536157,1767702645616,-151.51,0.000188,2]
[400536158,1767702645626,-151.51,0.000188,2]
[400536159,1767702645636,-151.51,0.000188,2]
[400536160,1767702645647,-151.51,0.000188,2]
[400536161,1767702645657,-151.51,0.000188,2]
[400536162,1767702645667,-151.51,0.000188,2]
[400536163,1767702645676,-151.51,0.000188,2]
[400536164,1767702645687,-151.51,0.000188,2]
[400536165,1767702645696,-151.51,0.000188,2]
[400536166,1767702645707,-151.51,0.000188,2]
[400536167,1767702645717,-151.51,0.000188,2]
[400536168,1767702645726,-151.51,0.000188,2]
[400536169,1767702645736,-151.51,0.000188,2]
[400536171,1767702645745,-151.51,0.000188,2]
[400536172,1767702645755,-151.51,0.000188,2]
[400536173,1767702645765,-151.51,0.000188,2]
[400536175,1767702645774,-151.51,0.000188,2]
[400536177,1767702645784,-151.51,0.000188,2]
[400536178,1767702645793,-14433.2241725,0.00018933,2]
[400536179,1767702645803,-364.23656334,0.00019,2]
[400536180,1767702645812,-3888.17635242,0.0002,3]
[400536181,1767702645821,-2909.82,0.00020193,2]
[400536182,1767702645831,-1000.0,0.00020193,2]
[400536183,1767702645841,-216.23,0.000204,7]
[400536184,1767702645850,-500.0,0.00020674,3]
[400536185,1767702645860,-156791.59027877,0.0002099,2]
[400536186,1767702645869,-1191.16510258,0.00021,2]
[400536187,1767702645879,-196.61170439,0.00021,2]
[400536188,1767702645889,-160.0,0.00021,7]
[400536189,1767702645898,-57438.65090699,0.000215,2]
[400536190,1767702645907,-221.7670119,0.000215,2]
[400536191,1767702645918,-1697.5077897,0.0002165,2]
[400536192,1767702645927,-999.99,0.0002165,2]
[400536193,1767702645937,-4950.34,0.0002192,2]
[400536194,1767702645946,-4950.34,0.0002192,2]
[400536195,1767702645956,-4950.34,0.0002192,2]
[400536196,1767702645966,-4950.34,0.0002192,2]
[400536197,1767702645975,-4950.34,0.0002192,2]
[400536198,1767702645985,-368743.64605885,0.00022,4]
[400536199,1767702645995,-163.53,0.00022,2]
[400536200,1767702646004,-170.601786,0.00022,2]
[400536201,1767702646014,-170.601786,0.00022,2]
[400536202,1767702646024,-170.601786,0.00022,2]
[400536203,1767702646034,-170.601786,0.00022,2]
[400536204,1767702646043,-154.837006,0.00022,2]
[400536205,1767702646052,-154.837006,0.00022,2]
[400536206,1767702646061,-154.837006,0.00022,2]
[400536207,1767702646071,-154.837006,0.00022,2]
[400536208,1767702646080,-151.0,0.00022,2]
[400536209,1767702646090,-219.850624,0.00022,2]
[400536210,1767702646100,-151.0,0.00022,2]
[400536211,1767702646109,-219.850624,0.00022,2]
[400536212,1767702646119,-151.0,0.00022,2]
[400536213,1767702646128,-219.850624,0.00022,2]
[400536214,1767702646138,-151.0,0.00022,2]
[400536215,1767702646148,-219.850624,0.00022,2]
[400536216,1767702646157,-190.096438,0.00022,2]
[400536217,1767702646166,-190.096438,0.00022,2]
[400536218,1767702646175,-190.096438,0.00022,2]
[400536219,1767702646184,-190.096438,0.00022,2]
[400536220,1767702646193,-160.8,0.000221,7]
[400536221,1767702646202,-4802.05396916,0.000221,2]
[400536222,1767702646217,-10996.87603084,0.000221,2]
[400536223,1767702646226,-1000.0,0.00022717,2]
[400536224,1767702646236,-298.48466787,0.00022945,2]
[400536225,1767702646245,-552.45242198,0.00023,2]
[400536226,1767702646254,-6754.30323711,0.000248,3]
[400536227,1767702646263,-2771.41348161,0.000249,3]
[400536228,1767702646272,-1000.0,0.00025241,2]
[400536229,1767702646282,-500.0,0.00026116,2]
[400536230,1767702646292,-412.43185971,0.00026882,2]
[400536231,1767702646302,-151.0,0.00027397,7]
[400536232,1767702646311,-151.0,0.00027397,7]
[400536233,1767702646320,-151.0,0.00027397,7]
[400536234,1767702646330,-151.0,0.00027397,7]
[400536235,1767702646340,-1000.0,0.00027765,2]
[400536236,1767702646349,-298.48466787,0.0002799,2]
[400536237,1767702646358,-999.01,0.00028,10]
[400536238,1767702646368,-205.21018032,0.00028404,2]
[400536239,1767702646377,-160.8,0.000287,7]
[400536240,1767702646387,-15798.93,0.000287,2]
[400536241,1767702646396,-512.0,0.00029877,2]
[400536242,1767702646406,-2000.0,0.000299,2]
[400536244,1767702646416,-615.20109651,0.00030087,2]
[400536245,1767702646426,-158.17938174,0.00030115,2]
[400536246,1767702646436,-1000.0,0.00030289,2]
[400536247,1767702646446,-785.94,0.00030397,2]
[400536248,1767702646455,-407.3619083,0.00030513,2]
[400536249,1767702646464,-7372.0000845,0.00030513,2]
[400536251,1767702646639,-1037.72021867,0.00030513,2]
[400536252,1767702646653,-158.17938174,0.00030538,20]
[400536253,1767702646664,-158.17938174,0.0003096,38]
[400536254,1767702646675,-158.17938174,0.00031383,56]
[400536255,1767702646687,-8301.84221811,0.0003143,4]
[400536256,1767702646699,-1518.01328894,0.0003143,4]
[400536257,1767702646710,-9825.28069551,0.0003143,4]
[400536258,1767702646721,-151.0,0.00031507,31]
[400536259,1767702646731,-151.0,0.00031507,31]
[400536260,1767702646740,-151.0,0.00031507,31]
[400536261,1767702646749,-151.0,0.00031507,31]
[400536262,1767702646759,-151.0,0.00031507,31]
[400536263,1767702646769,-1915.143244,0.00031507,31]
[400536264,1767702646779,-1915.143244,0.00031507,31]
[400536265,1767702646790,-1915.143244,0.00031507,31]
[400536266,1767702646800,-1915.143244,0.00031507,31]
[400536267,1767702646810,-325.370459,0.00031507,31]
[400536268,1767702646819,-325.370459,0.00031507,31]
[400536269,1767702646829,-151.0,0.00031507,31]
[400536270,1767702646838,-325.370459,0.00031507,31]
[400536271,1767702646848,-325.370459,0.00031507,31]
[400536272,1767702646857,-198.329205,0.00031507,31]
[400536273,1767702646867,-198.329205,0.00031507,31]
[400536274,1767702646876,-198.329205,0.00031507,31]
[400536275,1767702646886,-161.899282,0.00031507,31]
[400536276,1767702646895,-198.329205,0.00031507,31]
[400536277,1767702646904,-153.640835,0.00031507,31]
[400536278,1767702646914,-151.0,0.00031507,31]
[400536279,1767702646923,-151.0,0.00031507,31]
[400536280,1767702646932,-151.0,0.00031507,31]
[400536281,1767702646943,-151.0,0.00031507,31]
[400536282,1767702646952,-151.0,0.00031507,31]
[400536283,1767702646961,-151.0,0.00031507,31]
[400536284,1767702646970,-151.0,0.00031507,31]
[400536285,1767702646979,-151.0,0.00031507,31]
[400536286,1767702646989,-151.0,0.00031507,31]
[400536287,1767702646998,-271.216334,0.00031507,31]
[400536288,1767702647008,-151.0,0.00031507,31]
[400536289,1767702647017,-151.0,0.00031507,31]
[400536290,1767702647027,-151.0,0.00031507,31]
[400536291,1767702647036,-151.0,0.00031507,31]
[400536292,1767702647046,-151.0,0.00031507,31]
[400536293,1767702647055,-159.245567,0.00031507,31]
[400536294,1767702647065,-151.0,0.00031507,31]
[400536295,1767702647074,-159.245567,0.00031507,31]
[400536296,1767702647084,-151.0,0.00031507,31]
[400536297,1767702647093,-159.245567,0.00031507,31]
[400536298,1767702647102,-159.245567,0.00031507,31]
[400536299,1767702647111,-151.0,0.00031507,31]
[400536300,1767702647120,-151.0,0.00031507,31]
[400536301,1767702647130,-258.112976,0.00031507,31]
[400536302,1767702647139,-241.804721,0.00031507,31]
[400536303,1767702647148,-151.0,0.00031507,31]
[400536304,1767702647158,-151.0,0.00031507,31]
[400536305,1767702647167,-151.0,0.00031507,31]
[400536306,1767702647177,-151.0,0.00031507,31]
[400536308,1767702647186,-151.0,0.00031507,31]
[400536310,1767702647196,-151.0,0.00031507,31]
[400536312,1767702647206,-151.0,0.00031507,31]
[400536313,1767702647216,-151.0,0.00031507,31]
[400536314,1767702647225,-151.0,0.00031507,31]
[400536315,1767702647236,-151.0,0.00031507,31]
[400536317,1767702647245,-151.0,0.00031507,31]
[400536318,1767702647254,-151.0,0.00031507,31]
[400536320,1767702647263,-151.0,0.00031507,31]
[400536321,1767702647272,-151.0,0.00031507,31]
[400536322,1767702647282,-151.0,0.00031507,31]
[400536323,1767702647291,-562.540497,0.00031507,31]
[400536324,1767702647301,-562.540497,0.00031507,31]
[400536325,1767702647310,-562.540497,0.00031507,31]
[400536326,1767702647319,-176.93794,0.00031507,31]
[400536327,1767702647328,-240.463375,0.00031507,31]
[400536328,1767702647338,-176.93794,0.00031507,31]
[400536329,1767702647348,-158.17938174,0.00031806,74]
[400536330,1767702647357,-158.17938174,0.00032228,92]
[400536331,1767702647367,-1313.86200646,0.0003237,4]
[400536332,1767702647376,-512.0,0.00032383,4]
[400536333,1767702647386,-160.8,0.000324,7]
[400536334,1767702647396,-15798.93,0.000324,2]
[400536335,1767702647405,-158.17938174,0.00032651,110]
[400536336,1767702647415,-500.0,0.00032876,2]
[400536337,1767702647425,-500.0,0.00032876,2]
[400536338,1767702647435,-500.0,0.00032876,2]
[400536339,1767702647444,-500.0,0.00032876,2]
[400536340,1767702647454,-500.0,0.00032876,2]
[400536341,1767702647463,-500.0,0.00032876,2]
[400536342,1767702647472,-500.0,0.00032876,2]
[400536343,1767702647482,-526.89052971,0.00032876,2]
[400536344,1767702647491,-435.34,0.00033,120]
[400536345,1767702647500,-231.56,0.00033,14]
[400536346,1767702647509,-1378.77,0.00033,2]
[400536347,1767702647519,-290.09,0.00033,14]
[400536348,1767702647529,-200.0,0.00033005,2]
[400536349,1767702647538,-298.48466787,0.00033035,2]
[400536350,1767702647547,-198.57,0.00033127,2]
[400536351,1767702647557,-1404.0,0.00033481,2]
[400536352,1767702647567,-565.0,0.00033481,2]
[400536353,1767702647576,-5000.0,0.00033518,2]
[400536354,1767702647586,-2000.0,0.000336,2]
[400536355,1767702647595,-500.0,0.00033945,20]
[400536356,1767702647606,-250.21,0.00033945,2]
[400536357,1767702647616,-512.0,0.00034889,7]
[400536358,1767702647625,-1378.77,0.000349,2]
[400536359,1767702647636,-290.09,0.000349,14]
[400536360,1767702647650,-916.152,0.00035441,42]
[400536361,1767702647660,-231.56,0.000355,14]
[400536362,1767702647670,-383.95014612,0.00035616,7]
[400536363,1767702647678,-196.58314639,0.00035616,2]
[400536364,1767702647688,-15798.93,0.000357,2]
[400536365,1767702647698,-157.56857,0.00035888,30]
[400536366,1767702647707,-157.56857,0.00036088,30]
[400536367,1767702647716,-157.56857,0.00036288,30]
[400536368,1767702647725,-157.56857,0.00036488,30]
[400536369,1767702647735,-157.56857,0.00036688,30]
[400536370,1767702647744,-1809.27,0.000368,30]
[400536371,1767702647754,-1378.77,0.000368,2]
[400536372,1767702647764,-290.09,0.000368,14]
[400536373,1767702647773,-525.2285,0.00036888,7]
[400536374,1767702647782,-157.56857,0.00036888,30]
[400536375,1767702647791,-231.56,0.000369,14]
[400536376,1767702647800,-157.56857,0.00037088,30]
[400536377,1767702647810,-259.24290916,0.000372,120]
[400536379,1767702647819,-157.56857,0.00037288,30]
[400536380,1767702647829,-2000.0,0.000373,2]
[400536381,1767702647837,-512.0,0.00037395,10]
[400536382,1767702647847,-157.56857,0.00037488,30]
[400536383,1767702647857,-157.56857,0.00037688,30]
[400536384,1767702647866,-157.56857,0.00037888,30]
[400536385,1767702647875,-1000.0,0.00038,30]
[400536386,1767702647884,-500.0,0.00038,27]
[400536387,1767702647894,-1000.0,0.00038,27]
[400536388,1767702647903,-231.56,0.00038,14]
[400536389,1767702647912,-1378.77,0.00038,2]
[400536390,1767702647921,-290.09,0.00038,14]
[400536391,1767702647930,-359.63082628,0.00038,4]
[400536392,1767702647939,-298.48466787,0.0003808,2]
[400536393,1767702647949,-157.56857,0.00038088,30]
[400536394,1767702647958,-157.56857,0.00038288,30]
[400536395,1767702647967,-150.0,0.00038411,60]
[400536396,1767702647977,-150.0,0.00038411,2]
[400536397,1767702647986,-175.84813518,0.00038466,60]
[400536398,1767702647998,-157.56857,0.00038488,30]
[400536399,1767702648008,-269.88779834,0.00038606,2]
[400536400,1767702648017,-157.56857,0.00038688,30]
[400536401,1767702648027,-500.0,0.000388,30]
[400536402,1767702648036,-5200.0,0.00039041,120]
[400536403,1767702648045,-5200.0,0.00039041,120]
[400536404,1767702648054,-5200.0,0.00039041,120]
[400536405,1767702648063,-5200.0,0.00039041,120]
[400536407,1767702648072,-157.56857,0.00039088,30]
[400536408,1767702648081,-157.56857,0.00039288,30]
[400536409,1767702648090,-168.0,0.00039473,2]
[400536410,1767702648100,-157.56857,0.00039488,30]
[400536411,1767702648109,-168.0,0.00039646,2]
[400536412,1767702648118,-523.07420162,0.0003968,30]
[400536413,1767702648127,-500.0,0.0003968,120]
[400536414,1767702648137,-157.56857,0.00039688,30]
[400536415,1767702648146,-500.0,0.00039689,120]
[400536416,1767702648155,-500.0,0.00039689,120]
[400536417,1767702648165,-500.0,0.00039689,120]
[400536418,1767702648174,-500.0,0.00039689,120]
[400536419,1767702648184,-416.0,0.0003969,5]
[400536420,1767702648193,-151.0,0.0003969,120]
[400536421,1767702648203,-154.45562,0.0003969,120]
[400536422,1767702648212,-151.0,0.0003969,120]
[400536423,1767702648221,-208.779973,0.0003969,120]
[400536424,1767702648230,-151.0,0.0003969,120]
[400536425,1767702648239,-151.0,0.0003969,120]
[400536426,1767702648248,-243.781657,0.0003969,120]
[400536427,1767702648259,-243.781657,0.0003969,120]
[400536428,1767702648268,-243.781657,0.0003969,120]
[400536429,1767702648277,-151.0,0.0003969,120]
[400536430,1767702648286,-243.781657,0.0003969,120]
[400536431,1767702648295,-151.0,0.0003969,30]
[400536432,1767702648304,-204.730222,0.0003969,120]
[400536433,1767702648314,-459.461849,0.0003969,28]
[400536434,1767702648323,-459.461849,0.0003969,28]
[400536435,1767702648334,-459.461849,0.0003969,28]
[400536436,1767702648343,-459.461849,0.0003969,28]
[400536437,1767702648352,-225.397042,0.0003969,120]
[400536438,1767702648361,-151.0,0.0003969,120]
[400536439,1767702648370,-151.0,0.0003969,120]
[400536440,1767702648379,-151.000029,0.0003969,120]
[400536441,1767702648388,-151.0,0.0003969,120]
[400536442,1767702648398,-151.0,0.0003969,120]
[400536443,1767702648407,-151.0,0.0003969,120]
[400536444,1767702648417,-151.0,0.0003969,120]
[400536445,1767702648426,-151.0,0.0003969,120]
[400536446,1767702648435,-151.0,0.0003969,120]
[400536447,1767702648444,-1915.143244,0.0003969,120]
[400536448,1767702648453,-1915.143244,0.0003969,120]
[400536449,1767702648463,-1915.143244,0.0003969,120]
[400536450,1767702648472,-1915.143244,0.0003969,120]
[400536451,1767702648482,-1915.143244,0.0003969,120]
[400536452,1767702648491,-1915.143244,0.0003969,120]
[400536453,1767702648500,-1915.143244,0.0003969,120]
[400536454,1767702648509,-1915.143244,0.0003969,120]
[400536455,1767702648518,-325.370459,0.0003969,120]
[400536456,1767702648527,-325.370459,0.0003969,120]
[400536457,1767702648537,-325.370459,0.0003969,120]
[400536458,1767702648546,-325.370459,0.0003969,120]
[400536459,1767702648555,-151.0,0.0003969,120]
[400536460,1767702648565,-151.0,0.0003969,120]
[400536461,1767702648575,-325.370459,0.0003969,120]
[400536462,1767702648584,-325.370459,0.0003969,120]
[400536463,1767702648592,-325.370459,0.0003969,120]
[400536464,1767702648602,-325.370459,0.0003969,120]
[400536465,1767702648612,-198.329205,0.0003969,120]
[400536466,1767702648622,-198.329205,0.0003969,120]